bitfinex/quotes_ETHUSD_20250217
["timestamp","ask_amount","ask_price","bid_price","bid_amount"]
[1739797475362,3.6109,2769.4,2768.8,3.61164]
[1739797475558,4.3211,2769.6,2768.7,10.197072]
[1739797475743,3.61108,2769.3,2768.8,3.61165]
[1739797478243,3.61121,2769.2,2768.7,10.197102]
[1739797479594,3.61121,2769.2,2768.8,3.61166]
[1739797480384,3.61121,2769.2,2768.7,6.585362]
[1739797480551,3.61121,2769.2,2768.7,10.197152]
[1739797480746,3.61121,2769.2,2768.8,3.61167]
[1739797481254,3.61121,2769.2,2768.7,10.197092]
[1739797482256,3.61116,2769.2,2768.7,6.585362]
[1739797482590,3.61116,2769.2,2768.4,9.6586]
[1739797482591,3.61182,2768.7,2768.4,5.33]
[1739797482887,0.7518,2768.8,2768.4,5.33]
[1739797483094,3.0,2768.9,2767.2,8.87]
[1739797483095,0.7518,2768.4,2767.2,8.87]
[1739797483252,4.36511,2767.6,2767.1,0.005]
[1739797483457,3.61344,2767.5,2767.1,0.005]
[1739797484272,3.355123,2767.3,2767.1,0.005]
[1739797484453,0.791,2768.1,2767.1,0.005]
[1739797484668,0.791,2768.1,2767.2,3.61376]
[1739797484859,3.0,2767.9,2767.3,3.61354]
[1739797485057,6.61285,2767.9,2767.2,3.975636]
[1739797485293,3.61307,2767.8,2767.2,3.975636]
[1739797485588,3.61324,2767.6,2767.1,0.005]
[1739797485956,3.0,2767.9,2767.3,3.6135]
[1739797486188,3.0,2767.9,2767.4,3.6134]
[1739797486378,3.61277,2768.0,2767.5,3.61336]
[1739797486693,1.27668153,2768.1,2767.3,0.7939]
[1739797486919,3.61178,2768.8,2767.9,3.61274]
[1739797487079,3.61178,2768.8,2768.1,3.61258]
[1739797487080,0.361178,2768.7,2768.1,3.61258]
[1739797487680,3.61178,2768.8,2768.1,3.6125]
[1739797487896,3.61169,2768.8,2768.1,3.6125]
[1739797488078,0.8289,2768.9,2768.5,3.61204]
[1739797488615,0.8289,2768.9,2768.0,6.1392]
[1739797488822,4.44054,2768.9,2768.3,3.61231]
[1739797489018,0.8289,2768.9,2768.4,3.61214]
[1739797489187,0.8289,2768.9,2768.5,3.61203]
[1739797489599,3.0,2769.2,2768.6,3.61185]
[1739797489807,3.61131,2769.1,2768.5,3.61203]
[1739797490389,3.61141,2769.0,2768.5,3.61203]
[1739797490766,3.61141,2769.0,2768.3,3.61232]
[1739797490767,3.61156,2768.9,2768.3,3.61232]
[1739797490967,4.92231161,2769.2,2768.1,3.61256]
[1739797491172,3.61188,2768.7,2768.1,3.61256]
[1739797491598,3.61188,2768.7,2768.1,4.949014]
[1739797491781,3.61188,2768.7,2768.1,4.948954]
[1739797492370,3.61188,2768.7,2768.1,4.948934]
[1739797492578,4.21516611,2769.0,2768.0,5.33]
[1739797492772,3.61229,2768.4,2767.8,3.61289]
[1739797493290,3.61233,2768.3,2767.8,3.61289]
[1739797494609,4.44201,2768.5,2767.8,3.61289]
[1739797494790,4.44201,2768.5,2767.9,3.61276]
[1739797494990,0.8299,2768.5,2768.0,3.61264]
[1739797495389,3.8299,2768.5,2768.1,3.61256]
[1739797495601,3.0,2768.6,2768.2,3.61244]
[1739797495780,3.0,2768.6,2768.2,4.33493]
[1739797495991,3.0,2768.6,2768.2,3.61243]
[1739797497613,3.822,2768.8,2768.2,3.61238]
[1739797497781,3.0,2769.0,2768.6,3.61184]
[1739797497980,4.38486,2769.2,2768.7,3.61179]
[1739797498181,1.32321316,2769.2,2768.7,3.61179]
[1739797498376,4.38489,2769.2,2768.7,3.61179]
[1739797498790,4.38489,2769.2,2768.6,3.61184]
[1739797498991,3.61135,2769.1,2768.6,3.61184]
[1739797499201,3.61148,2769.0,2768.1,5.33]
[1739797499403,3.61162,2768.9,2768.3,3.61225]
[1739797499601,3.61188,2768.7,2768.2,3.61245]
[1739797500116,6.61136,2769.1,2768.1,5.33]
[1739797500418,3.0,2769.0,2768.5,3.61206]
[1739797500620,4.38485,2769.2,2768.5,3.61206]
[1739797500915,4.38485,2769.2,2768.7,3.61173]
[1739797501083,5.484446,2769.2,2768.7,3.61173]
[1739797501284,3.61128,2769.1,2768.6,3.61192]
[1739797501626,8.484466,2769.2,2768.6,3.61192]
[1739797501782,3.0,2769.2,2768.3,6.1058]
[1739797501989,3.61115,2769.2,2768.7,3.61176]
[1739797502322,3.61138,2769.1,2768.6,3.61192]
[1739797502687,3.61115,2769.2,2768.8,3.61166]
[1739797503022,3.0,2769.3,2768.4,0.61058]
[1739797503184,3.0,2769.3,2768.4,4.22275]
[1739797503520,3.0,2769.3,2768.8,3.61162]
[1739797503833,6.61109,2769.3,2768.8,3.61158]
[1739797504000,6.61103,2769.3,2768.8,3.61158]
[1739797504320,0.7773,2769.4,2768.6,3.61184]
[1739797504619,3.61186,2768.7,2768.3,5.33]
[1739797504796,4.416904,2768.7,2768.1,3.6125]
[1739797504993,3.61199,2768.6,2768.1,3.6125]
[1739797505410,3.61204,2768.6,2768.0,3.61265]
[1739797505610,3.61214,2768.5,2768.0,3.61269]
[1739797505815,3.6128,2768.0,2767.0,9.6525]
[1739797506010,0.7936,2767.8,2767.2,3.61365]
[1739797506209,0.7936,2767.8,2767.3,3.61353]
[1739797506390,0.7936,2767.8,2767.2,3.61376]
[1739797506585,0.7936,2767.8,2767.2,4.053886]
[1739797506887,4.4066,2767.8,2767.2,4.053796]
[1739797507088,0.7936,2767.8,2767.2,4.053796]
[1739797507312,0.7936,2767.8,2767.4,3.61348]
[1739797507513,3.0,2768.0,2767.6,3.61318]
[1739797507999,3.0,2768.0,2767.6,3.61314]
[1739797508236,3.61298,2767.8,2767.3,3.61358]
[1739797508597,3.61298,2767.8,2767.2,0.440126]
[1739797508598,3.61271,2768.0,2767.4,3.61341]
[1739797508800,4.413254,2768.0,2767.4,3.61341]
[1739797509000,4.413254,2768.0,2767.1,0.005]
[1739797509001,7.41206,2767.2,2767.1,0.005]
[1739797509310,20.67722611,2767.2,2767.1,0.005]
[1739797511344,11.62722611,2767.2,2767.1,0.005]
[1739797511647,22.20131172,2767.2,2767.1,0.005]
[1739797511845,22.20131172,2767.2,2765.5,4.3315842]
[1739797511846,3.61568,2765.8,2764.8,15.0057]
[1739797512010,3.61621,2765.4,2764.8,4.42253]
[1739797512205,3.0,2765.0,2763.9,9.0214834]
[1739797512511,3.61715,2764.6,2764.0,0.90214834]
[1739797512766,0.287,2765.5,2763.9,0.89229383]
[1739797512924,4.21516611,2765.6,2764.8,3.6168]
[1739797513120,4.21516611,2765.2,2764.4,0.7711]
[1739797513448,4.3786,2764.8,2763.9,0.1514834]
[1739797513750,3.61735,2764.5,2763.9,0.1514834]
[1739797513919,4.21516611,2764.6,2763.9,0.1514834]
[1739797514121,3.7617,2764.8,2763.9,0.1514834]
[1739797514560,0.42151661,2765.1,2763.9,0.1514834]
[1739797514561,1.21611661,2765.1,2763.9,0.1514834]
[1739797514722,1.21611661,2765.1,2764.4,3.61741]
[1739797514723,4.83265661,2765.1,2764.4,3.61741]
[1739797515223,0.93385375,2765.5,2764.3,0.55]
[1739797515224,1.42095375,2765.5,2764.3,0.55]
[1739797515433,0.64485375,2765.5,2765.4,3.61611]
[1739797515819,0.7761,2765.9,2765.4,3.61611]
[1739797516118,0.7761,2765.9,2765.2,3.61625]
[1739797516315,0.7761,2765.9,2765.0,3.61661]
[1739797516316,3.61581,2765.7,2765.0,3.61661]
[1739797516555,3.61559,2765.8,2765.1,3.6165]
[1739797516758,3.0,2765.6,2764.9,8.87]
[1739797517101,3.61615,2765.4,2764.9,8.87]
[1739797517214,3.0,2765.4,2764.9,8.87]
[1739797517571,3.0,2765.5,2764.9,3.6167]
[1739797517779,3.0,2765.5,2764.5,0.7768]
[1739797517780,3.0,2765.5,2764.6,3.61715]
[1739797517918,3.61622,2765.4,2764.8,3.61689]
[1739797518118,3.61622,2765.4,2764.6,3.61715]
[1739797518373,3.0,2765.5,2764.6,3.61715]
[1739797518557,3.977444,2765.6,2764.6,0.55]
[1739797518558,0.6977444,2765.4,2764.6,0.55]
[1739797518756,3.61624,2765.3,2764.6,4.16715]
[1739797518972,3.61624,2765.3,2764.6,0.55]
[1739797519169,0.811,2765.3,2764.7,3.61699]
[1739797519376,4.42728,2765.3,2764.7,3.61699]
[1739797519520,4.42728,2765.3,2764.7,3.61693]
[1739797519715,1.915329,2765.3,2764.8,3.61681]
[1739797519951,5.531679,2765.3,2764.7,3.61693]
[1739797520171,3.61652,2765.1,2764.5,3.61726]
[1739797520907,3.0,2765.2,2764.6,3.61714]
[1739797521073,3.61651,2765.1,2764.6,3.61714]
[1739797521227,1.2148129,2765.1,2764.6,3.61714]
[1739797521584,0.811,2765.3,2764.4,0.03616875]
[1739797521737,3.61645,2765.2,2764.5,0.8167]
[1739797522076,3.61684,2764.9,2764.3,3.61745]
[1739797522682,3.61725,2764.6,2764.0,8.87]
[1739797522981,3.61725,2764.6,2764.0,12.48783]
[1739797523134,0.723419,2764.6,2764.0,8.87]
[1739797523335,0.7728,2765.0,2764.0,8.87]
[1739797523556,0.7728,2765.0,2764.6,3.61706]
[1739797523762,4.42063,2765.3,2764.8,3.61684]
[1739797523940,0.8043,2765.3,2764.8,3.61684]
[1739797524117,0.8043,2765.3,2765.1,3.61649]
[1739797524316,0.755,2765.7,2764.4,9.6993]
[1739797524571,0.755,2765.7,2765.1,3.61641]
[1739797524731,0.755,2765.7,2765.3,3.61622]
[1739797524937,1.492049,2765.7,2765.3,3.61622]
[1739797525146,1.492049,2765.7,2765.3,3.61616]
[1739797525376,1.492049,2765.7,2765.1,3.61649]
[1739797525541,4.37079,2765.7,2765.1,3.61649]
[1739797525717,4.37079,2765.7,2764.9,3.61671]
[1739797525920,4.37079,2765.7,2765.0,3.61654]
[1739797526174,4.37079,2765.7,2765.1,3.61642]
[1739797526382,0.755,2765.7,2765.1,3.61642]
[1739797526681,3.61611,2765.4,2764.6,3.61703]
[1739797526983,3.7969,2765.6,2764.6,3.61703]
[1739797526984,0.7969,2765.0,2764.6,3.61703]
[1739797529506,0.7969,2765.0,2764.5,3.61727]
[1739797529847,3.61729,2764.5,2764.0,3.61787]
[1739797530012,6.61726,2764.6,2764.0,3.61787]
[1739797530198,1.023431,2764.5,2764.1,3.6178]
[1739797530661,1.023431,2764.5,2764.0,3.6179]
[1739797530811,1.023431,2764.5,2764.2,3.61765]
[1739797531012,0.7955,2764.4,2764.0,3.61785]
[1739797531247,3.7955,2764.8,2764.2,3.61758]
[1739797531547,0.7955,2765.2,2764.7,3.61693]
[1739797531696,3.7955,2765.2,2764.6,3.61715]
[1739797531899,3.6167,2765.0,2764.4,3.61734]
[1739797532309,3.6167,2765.0,2764.4,3.61733]
[1739797532673,1.102879,2765.0,2764.8,3.61687]
[1739797532960,3.7955,2765.2,2764.8,3.61687]
[1739797533162,7.41187,2765.2,2764.9,0.17379129]
[1739797533471,3.61659,2765.1,2764.6,3.61713]
[1739797533761,3.441209,2765.1,2765.0,0.17376628]
[1739797534067,9.498209,2765.1,2765.0,0.17376628]
[1739797534272,4.057809,2765.1,2764.6,3.61715]
[1739797534568,0.7955,2765.2,2764.8,3.61683]
[1739797534724,0.7955,2765.2,2764.9,3.61676]
[1739797534913,6.61619,2765.4,2764.9,3.61676]
[1739797535148,3.0,2765.4,2765.0,0.17376628]
[1739797535468,0.737016,2765.3,2764.8,3.61688]
[1739797535670,0.737016,2765.3,2765.1,0.17374128]
[1739797536004,4.353256,2765.3,2764.7,3.61695]
[1739797536126,4.353256,2765.3,2765.2,0.17371628]
[1739797536309,0.737016,2765.3,2765.2,0.17371628]
[1739797536509,3.0,2765.4,2765.0,3.61657]
[1739797536758,3.0,2765.4,2765.2,0.17371628]
[1739797536936,4.37014,2765.5,2765.1,0.17355698]
[1739797537137,4.37014,2765.5,2765.3,0.17350698]
[1739797537342,4.37014,2765.5,2765.2,0.17353198]
[1739797537573,8.107154,2765.5,2765.4,0.17348198]
[1739797537774,8.107154,2765.5,2765.3,0.17350698]
[1739797537917,3.61611,2765.4,2764.7,0.55]
[1739797538116,3.61611,2765.4,2764.9,3.61668]
[1739797538372,8.107154,2765.5,2764.9,3.61668]
[1739797538532,4.491114,2765.5,2765.1,3.61646]
[1739797539375,4.491114,2765.5,2764.7,0.55]
[1739797539512,3.7541,2765.5,2765.0,3.61652]
[1739797539718,3.7541,2765.5,2765.1,3.6165]
[1739797539950,3.7541,2765.5,2765.0,3.61654]
[1739797540217,3.7541,2765.5,2765.1,0.1736078]
[1739797540670,7.37011,2765.5,2765.1,0.1736078]
[1739797540963,8.468705,2765.5,2765.1,0.1736078]
[1739797541334,3.61611,2765.4,2765.1,0.1736078]
[1739797541862,3.61611,2765.4,2765.2,0.1735828]
[1739797542164,3.61611,2765.4,2765.0,3.61662]
[1739797542334,3.61611,2765.4,2765.3,0.1735578]
[1739797542530,1.2084655,2765.4,2765.0,3.61662]
[1739797542750,7.37014,2765.5,2765.3,0.1735578]
[1739797543077,7.37014,2765.5,2765.4,0.1735328]
[1739797543375,7.37014,2765.5,2765.0,3.61654]
[1739797543585,7.37008,2765.5,2765.4,0.1735328]
[1739797543783,3.7541,2765.5,2765.1,3.61649]
[1739797543941,3.7541,2765.5,2765.4,0.1735328]
[1739797544143,4.85267,2765.5,2765.1,3.61644]
[1739797544382,4.85267,2765.5,2765.4,0.1735328]
[1739797544582,4.85267,2765.5,2765.1,3.61644]
[1739797544787,4.85267,2765.5,2765.4,0.1735328]
[1739797544993,4.85267,2765.5,2765.1,3.6165]
[1739797545137,4.85267,2765.5,2765.4,0.1735328]
[1739797545338,4.85267,2765.5,2765.1,3.6165]
[1739797545537,4.85267,2765.5,2765.4,0.1735328]
[1739797545737,4.85267,2765.5,2765.1,3.6165]
[1739797545938,4.85267,2765.5,2765.4,0.1735328]
[1739797546148,4.85267,2765.5,2765.2,3.61627]
[1739797546478,4.85267,2765.5,2765.3,3.7897778]
[1739797546649,0.7541,2765.5,2765.4,3.61611]
[1739797546849,0.7594,2765.8,2765.4,0.1735328]
[1739797547038,0.7594,2765.8,2765.6,3.61573]
[1739797547457,0.7594,2765.8,2765.7,0.17321638]
[1739797547660,0.7594,2765.8,2765.5,3.6159]
[1739797547892,0.7594,2765.8,2765.7,0.17321638]
[1739797548078,0.7594,2765.8,2765.5,3.6159]
[1739797548392,0.7594,2765.8,2765.7,0.17321638]
[1739797548599,0.7594,2765.8,2764.2,0.7791]
[1739797548600,7.36902,2765.7,2764.2,0.7791]
[1739797548805,3.61725,2764.6,2764.3,0.72568435]
[1739797548959,3.61707,2764.7,2764.1,7.23553]
[1739797549297,3.7533,2764.8,2764.2,3.61765]
[1739797549497,3.61713,2764.7,2764.2,3.61765]
[1739797549696,7.37021,2764.8,2763.9,0.9305834]
[1739797549916,4.354141,2764.7,2764.1,3.61774]
[1739797550091,4.354141,2764.7,2763.9,0.9305834]
[1739797550400,7.971261,2764.7,2764.1,3.61774]
[1739797550556,0.737021,2764.7,2764.3,3.61753]
[1739797550758,4.354061,2764.7,2764.3,3.61753]
[1739797551027,7.971191,2764.7,2764.1,3.61774]
[1739797551198,1.1724491,2764.6,2764.0,0.55]
[1739797551384,3.61736,2764.5,2764.0,4.16788]
[1739797551575,1.1724491,2764.6,2764.0,0.55]
[1739797551897,3.61723,2764.6,2764.1,3.6178]
[1739797552701,0.7533,2764.8,2764.0,0.55]
[1739797552871,3.0,2765.1,2764.0,0.55]
[1739797552872,4.42508,2765.1,2764.0,0.55]
[1739797553071,8.04169,2765.1,2764.5,3.61719]
[1739797553277,3.61663,2765.0,2764.5,3.61719]
[1739797554800,5.229249,2765.1,2764.5,3.61719]
[1739797555004,3.61678,2764.9,2764.5,3.61719]
[1739797555210,3.61678,2764.9,2764.6,0.14868458]
[1739797555407,3.61679,2764.9,2764.6,0.14868458]
[1739797555611,0.361679,2764.8,2764.6,0.14868458]
[1739797555812,3.0,2765.0,2764.4,3.61735]
[1739797556007,3.61678,2764.9,2764.7,0.14865957]
[1739797556207,3.0,2765.0,2764.4,0.7697]
[1739797556510,0.8085,2765.1,2764.5,3.6172]
[1739797556718,4.42501,2765.1,2764.7,3.61702]
[1739797556876,0.8085,2765.1,2764.7,3.61694]
[1739797557071,4.425,2765.1,2764.8,0.14863456]
[1739797557390,0.8085,2765.1,2764.6,3.61707]
[1739797557804,0.8085,2765.1,2764.7,3.61701]
[1739797558005,4.425,2765.1,2764.7,0.14865957]
[1739797558590,0.8085,2765.1,2764.7,0.14865957]
[1739797558787,4.42504,2765.1,2764.7,0.14865957]
[1739797558996,6.6163,2765.3,2764.8,3.61683]
[1739797559310,3.0,2765.3,2764.9,0.14860956]
[1739797559515,3.61638,2765.2,2764.9,0.14860956]
[1739797559912,3.61638,2765.2,2764.8,0.55]
[1739797560092,3.61638,2765.2,2765.0,0.14902145]
[1739797560415,6.61627,2765.3,2765.1,0.14899645]
[1739797560619,3.61637,2765.2,2764.8,0.55]
[1739797560816,3.61637,2765.2,2764.9,0.14904645]
[1739797561718,7.720377,2765.3,2764.9,0.14904645]
[1739797561923,11.336727,2765.3,2764.9,0.14904645]
[1739797562086,7.720377,2765.3,2764.9,0.14904645]
[1739797562821,6.61625,2765.3,2764.9,0.14904645]
[1739797563919,6.61625,2765.3,2765.0,0.55]
[1739797564108,0.8088,2765.4,2765.0,0.55]
[1739797564427,0.8088,2765.4,2765.1,0.14859413]
[1739797564586,3.61606,2765.5,2765.1,0.14859413]
[1739797564788,3.61609,2765.5,2765.1,0.14859413]
[1739797565105,3.61617,2765.4,2765.1,0.14859413]
[1739797565294,3.61626,2765.3,2765.1,0.14859413]
[1739797567113,4.39507,2765.2,2765.1,0.14859413]
[1739797567312,4.39507,2765.2,2764.3,4.44248]
[1739797567313,3.0,2765.1,2764.6,0.55]
[1739797567629,3.61706,2764.7,2764.6,0.55]
[1739797567816,3.61706,2764.7,2764.4,0.55]
[1739797568130,3.61684,2764.9,2764.4,0.55]
[1739797568131,3.61689,2764.8,2764.4,0.55]
[1739797568308,3.61689,2764.8,2764.4,4.16741]
[1739797568622,3.61666,2765.0,2764.4,4.16741]
[1739797568623,3.61666,2765.0,2764.6,0.55]
[1739797569225,8.01166,2765.2,2764.7,3.61695]
[1739797569392,3.61664,2765.0,2764.7,0.55]
[1739797570141,3.61681,2764.9,2764.8,0.13847767]
[1739797570661,3.6169,2764.8,2764.4,0.55]
[1739797570808,3.61706,2764.7,2764.4,0.55]
[1739797572244,3.6169,2764.8,2764.4,0.55]
[1739797572842,3.61696,2764.8,2764.4,0.55]
[1739797573009,3.61704,2764.7,2764.4,0.55]
[1739797573213,3.61696,2764.8,2764.4,0.55]
[1739797573708,3.978656,2764.8,2764.2,0.55]
[1739797573904,3.61702,2764.7,2764.2,0.55]
[1739797574109,3.61702,2764.7,2764.2,4.16767]
[1739797574918,3.361696,2764.8,2764.2,4.16758]
[1739797575122,3.0,2764.8,2764.5,0.55]
[1739797575538,3.61677,2764.9,2764.5,4.16721]
[1739797575745,3.61677,2764.9,2764.5,0.55]
[1739797575928,3.0,2764.8,2764.5,0.55]
[1739797576315,3.61634,2765.3,2764.7,4.42946]
[1739797576516,3.61634,2765.3,2764.8,0.55]
[1739797576722,3.61637,2765.2,2764.8,4.16687]
[1739797577359,14.17,2767.2,2764.8,4.16687]
[1739797577360,0.72896288,2766.0,2765.9,4.93325]
[1739797577645,0.69501677,2766.1,2766.0,4.16532]
[1739797578036,3.61436,2766.8,2766.0,3.61526]
[1739797578037,3.61429,2766.8,2766.0,3.61526]
[1739797578255,7.8388112,2767.7,2766.0,3.61526]
[1739797578256,0.788,2768.6,2767.4,3.61338]
[1739797578421,0.788,2768.6,2767.3,3.61361]
[1739797578422,3.6127,2768.1,2767.3,3.61361]
[1739797578834,3.6127,2768.1,2766.8,0.7742]
[1739797578835,1.12742188,2768.6,2766.8,4.38837]
[1739797579106,0.788,2768.3,2766.9,0.55]
[1739797579422,0.788,2768.3,2767.3,0.55]
[1739797579745,0.788,2768.3,2767.6,3.61318]
[1739797579945,7.40037,2768.3,2767.7,0.55]
[1739797580148,4.352597,2768.2,2767.6,0.55]
[1739797580442,4.352597,2768.2,2767.4,0.7742]
[1739797580443,4.352497,2768.2,2767.4,4.38759]
[1739797580767,0.740037,2768.2,2767.7,0.55]
[1739797580946,3.61197,2768.6,2767.6,3.61322]
[1739797580947,0.788,2768.6,2767.9,0.55]
[1739797581250,3.6121,2768.5,2767.7,3.61309]
[1739797581435,0.788,2768.6,2767.7,3.61309]
[1739797581632,7.39996,2768.6,2767.8,0.55]
[1739797581832,5.139956,2768.6,2767.8,4.16293]
[1739797582009,1.527996,2768.6,2767.7,0.55]
[1739797582216,8.139936,2768.6,2767.9,0.55]
[1739797582413,1.527996,2768.6,2767.9,4.16284]
[1739797582627,0.788,2768.6,2767.9,4.16284]
[1739797583032,0.87250657,2769.1,2768.1,8.3882312]
[1739797583217,3.61141,2769.0,2768.3,3.61229]
[1739797583418,3.61141,2769.0,2768.4,0.55]
[1739797583610,3.61141,2769.0,2768.3,3.61229]
[1739797583611,3.61159,2768.9,2768.2,0.55]
[1739797583847,3.61141,2769.0,2768.4,0.55]
[1739797584151,3.61141,2769.0,2768.5,0.55]
[1739797584313,3.0,2769.1,2768.5,4.16202]
[1739797584748,3.61129,2769.1,2768.5,0.55]
[1739797585055,3.61167,2768.8,2768.6,0.1278458]
[1739797585273,3.61167,2768.8,2768.1,7.8382312]
[1739797585550,3.61167,2768.8,2768.7,0.67782086]
[1739797585728,3.61167,2768.8,2768.7,0.55]
[1739797585924,3.61167,2768.8,2768.7,0.67778929]
[1739797586135,7.333981,2768.8,2768.7,0.12778929]
[1739797586549,3.61222,2768.4,2767.8,3.61285]
[1739797586714,3.61247,2768.2,2767.6,0.72231969]
[1739797586914,3.61247,2768.2,2767.5,4.2256512]
[1739797586915,3.61275,2768.0,2767.9,0.12090454]
[1739797587116,3.61322,2767.7,2767.0,3.61397]
[1739797587426,3.61359,2767.4,2767.1,0.11678223]
[1739797587642,3.61359,2767.4,2766.8,3.61427]
[1739797587956,3.61371,2767.3,2766.9,0.11290467]
[1739797588445,3.61371,2767.3,2766.6,7.8401512]
[1739797588446,3.61371,2767.3,2767.0,0.1128797]
[1739797588669,3.61371,2767.3,2766.7,3.61432]
[1739797588871,6.61351,2767.4,2767.1,0.11285474]
[1739797589035,3.0,2767.7,2766.9,7.8396912]
[1739797589234,3.0,2767.8,2767.2,0.55]
[1739797589469,3.61317,2767.7,2767.3,0.11318341]
[1739797589974,3.61317,2767.7,2767.2,0.55]
[1739797590340,7.4162445,2767.8,2767.3,0.11318341]
[1739797590545,4.37119,2767.9,2767.3,0.11318341]
[1739797590546,0.7583,2767.9,2767.4,0.55]
[1739797590885,6.61274,2768.0,2767.6,0.55]
[1739797591107,3.0,2768.0,2767.6,0.55]
[1739797591243,4.42747,2768.2,2767.8,0.55]
[1739797591440,3.61273,2768.0,2767.9,0.66297688]
[1739797591635,4.870217,2768.2,2767.9,0.66297688]
[1739797591636,4.870217,2768.2,2767.9,0.55]
[1739797591842,3.0,2768.2,2768.1,0.55]
[1739797592156,3.61225,2768.4,2768.1,0.66292698]
[1739797592545,3.0,2768.3,2768.1,0.66292698]
[1739797592745,3.61245,2768.2,2768.1,0.66292698]
[1739797596776,6.61232,2768.3,2768.1,0.66292698]
[1739797596978,3.0,2768.3,2768.1,0.66292698]
[1739797597278,6.61221,2768.4,2767.9,4.16283]
[1739797597491,3.61235,2768.3,2767.9,0.55]
[1739797597783,3.61235,2768.3,2768.1,0.55]
[1739797597969,3.61245,2768.2,2768.1,0.55]
[1739797598175,6.61235,2768.3,2768.2,0.66336243]
[1739797598342,6.61235,2768.3,2768.2,0.55]
[1739797598544,6.61235,2768.3,2768.2,0.66336243]
[1739797599378,3.0,2768.3,2768.2,0.66336243]
[1739797599959,6.61232,2768.3,2768.2,0.66336243]
[1739797603254,7.634771,2768.3,2768.2,0.11336243]
[1739797603454,4.022451,2768.3,2767.6,0.55]
[1739797603668,3.61272,2768.0,2767.8,0.55]
[1739797603863,3.61272,2768.0,2767.9,0.11343727]
[1739797604589,3.61272,2768.0,2767.6,0.55]
[1739797605100,3.61272,2768.0,2767.8,0.55]
[1739797605606,3.61272,2768.0,2767.9,0.11310916]
[1739797605993,3.6126,2768.1,2768.0,0.55]
[1739797606378,3.6126,2768.1,2768.0,0.66308421]
[1739797610227,7.7373501,2768.1,2768.0,0.11308421]
[1739797610523,3.6132,2767.7,2767.4,0.8158]
[1739797610691,3.6132,2767.7,2767.5,0.55]
[1739797610887,7.7373501,2768.1,2767.5,0.66326577]
[1739797610888,3.61284,2767.9,2767.5,0.66326577]
[1739797611087,3.61316,2767.7,2767.5,0.66326577]
[1739797611500,7.22635,2767.7,2767.5,0.66326577]
[1739797611700,3.61284,2767.9,2767.5,0.66326577]
[1739797611926,3.61312,2767.7,2767.5,0.66326577]
[1739797612286,3.61294,2767.9,2767.5,0.66326577]
[1739797612489,3.61305,2767.8,2767.5,0.66326577]
[1739797612727,3.61313,2767.7,2767.5,0.66326577]
[1739797613323,7.22636,2767.7,2767.5,0.66326577]
[1739797613704,0.8268,2768.0,2767.5,0.66326577]
[1739797613919,3.6129,2767.9,2767.5,0.66326577]
[1739797614824,3.613,2767.8,2767.5,0.66326577]
[1739797615625,3.61305,2767.8,2767.5,0.66326577]
[1739797616221,7.22614,2767.8,2767.5,0.66326577]
[1739797616408,3.61278,2768.0,2767.5,0.66326577]
[1739797616608,3.61311,2767.7,2767.5,0.66326577]
[1739797617924,3.61323,2767.6,2767.5,0.66326577]
[1739797618722,3.61311,2767.7,2767.5,0.66326577]
[1739797618920,3.61293,2767.9,2767.5,0.66326577]
[1739797619124,3.0,2767.9,2767.5,4.27661577]
[1739797619512,3.0,2767.9,2767.5,4.27657577]
[1739797619719,6.61284,2767.9,2767.5,4.27657577]
[1739797619915,3.0,2767.9,2767.5,4.27657577]
[1739797620214,3.61297,2767.8,2767.5,0.66326577]
[1739797620426,3.61315,2767.7,2767.5,0.66326577]
[1739797620617,3.0,2767.9,2767.5,4.27653577]
[1739797621117,3.0,2767.9,2767.7,0.55]
[1739797621518,3.61297,2767.8,2767.4,0.55]
[1739797621741,6.61288,2767.9,2767.4,3.61349]
[1739797621909,6.61288,2767.9,2767.5,0.55]
[1739797622101,3.0,2768.0,2767.6,3.61312]
[1739797622307,6.61271,2768.0,2767.6,0.911312]
[1739797622515,3.61248,2768.2,2767.7,0.7931]
[1739797622734,6.61265,2768.1,2767.7,4.40617]
[1739797622921,6.61265,2768.1,2767.7,0.7931]
[1739797623649,6.61265,2768.1,2767.8,0.55]
[1739797624009,3.61274,2768.0,2767.8,0.55]
[1739797624339,6.61284,2767.9,2767.8,0.55]
[1739797624730,3.0,2767.9,2767.8,0.55]
[1739797625715,0.7834,2768.3,2767.8,0.55]
[1739797625923,3.61247,2768.2,2767.8,4.16291]
[1739797626344,3.0,2768.1,2767.8,0.55]
[1739797626941,3.61284,2767.9,2767.8,0.55]
[1739797627645,0.7834,2768.3,2767.8,0.55]
[1739797627846,3.61264,2768.1,2767.8,0.55]
[1739797628011,3.61261,2768.1,2767.8,0.55]
[1739797628674,3.61284,2767.9,2767.4,4.12616965]
[1739797628847,3.61273,2768.0,2767.4,5.43314561]
[1739797629150,3.61294,2767.9,2767.5,0.55]
[1739797629349,3.61273,2768.0,2767.5,4.16334]
[1739797629647,3.6126,2768.1,2767.7,0.55]
[1739797630055,3.61252,2768.2,2767.8,0.11340542]
[1739797630267,3.61273,2768.0,2767.8,0.11340542]
[1739797630769,3.61258,2768.1,2767.8,0.11340542]
[1739797630937,3.61284,2767.9,2767.4,5.68099596]
[1739797631346,3.61277,2768.0,2767.5,0.55]
[1739797631554,3.61286,2767.9,2767.5,4.16333]
[1739797631724,3.61286,2767.9,2767.5,0.55]